bitfinex/quotes_SOLUSD_20241225
["timestamp","ask_amount","ask_price","bid_price","bid_amount"]
[1735114626856,0.94329113,198.81,198.71,0.12549]
[1735114627427,0.94329113,198.81,198.7,0.37604816]
[1735114627627,0.94329113,198.81,198.69,21.5946]
[1735114627628,6.2877,198.8,198.69,21.5946]
[1735114627843,0.94342109,198.79,198.69,20.0]
[1735114628155,0.94342109,198.79,198.67,0.37618605]
[1735114628331,0.94342109,198.79,198.64,37.687]
[1735114628332,0.94342109,198.79,198.65,0.37649745]
[1735114628765,0.94342109,198.79,198.66,0.12549]
[1735114628962,6.2883,198.78,198.66,0.12549]
[1735114629132,0.94349133,198.77,198.66,0.12549]
[1735114629559,0.94349133,198.77,198.68,20.0]
[1735114630188,0.94349133,198.77,198.69,23.776884]
[1735114632669,6.2883,198.78,198.7,0.3762023]
[1735114633261,7.2305977,198.82,198.71,23.902374]
[1735114633591,7.2305977,198.82,198.72,0.37598569]
[1735114640094,6.2872,198.82,198.73,0.12549]
[1735114640884,6.5178,198.84,198.74,0.37577805]
[1735114641095,6.5178,198.84,198.75,0.12549]
[1735114641252,6.5178,198.84,198.77,0.12549]
[1735114641451,6.5178,198.84,198.77,23.902374]
[1735114643479,0.94299529,198.83,198.77,23.776884]
[1735114644383,6.5178,198.84,198.77,23.776884]
[1735114646690,7.22978814,198.83,198.77,23.776884]
[1735114647560,7.22978814,198.83,198.68,30.0]
[1735114647879,7.22978814,198.83,198.65,1.6277]
[1735114647880,20.0,198.8,198.65,32.00397009]
[1735114648059,20.94348573,198.79,198.65,31.6277]
[1735114648259,6.4992,198.76,198.65,31.6277]
[1735114648459,0.94356926,198.75,198.66,0.12549]
[1735114649095,0.94356926,198.75,198.65,31.6277]
[1735114650599,0.94356926,198.75,198.66,23.776884]
[1735114652306,6.2896,198.74,198.66,23.776884]
[1735114652586,0.94369862,198.73,198.61,0.37690767]
[1735114652787,0.94369862,198.73,198.6,1.6458]
[1735114653154,20.0,198.71,198.6,1.6458]
[1735114653358,0.94382033,198.7,198.59,30.0]
[1735114653685,0.94382033,198.7,198.59,30.37715196]
[1735114654359,7.23462033,198.7,198.59,30.37715196]
[1735114654692,7.23462033,198.7,198.6,23.776884]
[1735114655689,7.23462033,198.7,198.55,2.02294897]
[1735114655690,6.3981,198.69,198.55,31.6458]
[1735114655899,0.6054,198.67,198.55,30.0]
[1735114656095,0.94403167,198.66,198.53,0.37723019]
[1735114656333,20.94403167,198.66,198.52,30.0]
[1735114656661,20.94403167,198.66,198.43,15.11]
[1735114656662,6.3981,198.65,198.47,30.0]
[1735114656881,20.0,198.62,198.47,30.0]
[1735114657096,20.0,198.62,198.45,129.0458]
[1735114657097,0.94433605,198.61,198.45,129.0458]
[1735114657275,0.94433605,198.61,198.48,30.0]
[1735114657276,20.94433605,198.61,198.48,30.0]
[1735114657593,27.23813605,198.61,198.48,30.0]
[1735114659295,27.23813605,198.61,198.49,20.0]
[1735114659617,27.23813605,198.61,198.47,0.12549]
[1735114659618,27.23813605,198.61,198.5,23.776884]
[1735114659805,27.23813605,198.61,198.45,1.6458]
[1735114660205,6.3981,198.6,198.45,1.6458]
[1735114660378,0.94455535,198.59,198.45,1.6458]
[1735114660808,0.94455535,198.59,198.46,30.0]
[1735114661015,0.94455535,198.59,198.47,0.50395211]
[1735114661313,0.94455535,198.59,198.47,23.902374]
[1735114673323,7.23915535,198.59,198.47,23.902374]
[1735114674008,7.34244685,198.6,198.5,23.776884]
[1735114674206,7.34244685,198.6,198.5,24.15482103]
[1735114674400,6.3981,198.6,198.51,30.12549]
[1735114674611,6.3981,198.6,198.53,30.12549]
[1735114674820,6.3981,198.6,198.54,23.776884]
[1735114679038,0.94424415,198.59,198.54,23.776884]
[1735114679235,0.94424415,198.59,198.52,20.0]
[1735114679410,6.3981,198.6,198.52,20.0]
[1735114680429,6.3981,198.6,198.53,23.776884]
[1735114681709,6.3981,198.6,198.54,0.50315259]
[1735114682206,6.4887,198.65,198.56,23.776884]
[1735114682410,6.4887,198.65,198.56,24.15424081]
[1735114683140,6.4887,198.65,198.58,23.776884]
[1735114683436,6.4887,198.65,198.58,24.15403688]
[1735114683848,6.4887,198.65,198.59,30.12549]
[1735114684146,6.4887,198.7,198.62,23.776884]
[1735114684325,6.4887,198.7,198.62,24.15368077]
[1735114684522,6.4887,198.68,198.62,24.15368077]
[1735114685040,6.4887,198.68,198.62,23.776884]
[1735114685216,6.4887,198.68,198.61,23.776884]
[1735114685514,6.4887,198.68,198.61,24.15380831]
[1735114687041,6.4887,198.68,198.61,23.776884]
[1735114688546,0.94382545,198.67,198.61,23.776884]
[1735114689018,6.4887,198.68,198.61,23.776884]
[1735114691229,6.42820847,198.68,198.61,23.776884]
[1735114692950,6.42820847,198.68,198.56,30.0]
[1735114693148,0.94383987,198.67,198.54,1.5876]
[1735114693453,20.0,198.65,198.52,30.37767318]
[1735114693640,6.3078,198.63,198.5,30.0]
[1735114693877,0.94421033,198.62,198.5,30.0]
[1735114694245,0.94421033,198.62,198.45,30.0]
[1735114694425,20.0,198.6,198.45,30.0]
[1735114694634,0.9443768,198.59,198.45,30.0]
[1735114694825,0.9443768,198.59,198.44,1.6603]
[1735114695026,0.9443768,198.59,198.4,0.37837049]
[1735114695027,20.0,198.53,198.4,0.37837049]
[1735114695244,20.94456003,198.52,198.38,1.6603]
[1735114695552,20.94456003,198.52,198.38,31.6603]
[1735114695931,20.94456003,198.52,198.4,30.0]
[1735114696132,0.94456003,198.52,198.42,30.0]
[1735114696347,0.94455317,198.51,198.41,0.37878393]
[1735114696540,0.94455317,198.51,198.41,20.0]
[1735114696741,0.94455317,198.51,198.38,2.03910409]
[1735114696742,0.94455317,198.51,198.39,30.0]
[1735114696931,0.94455317,198.51,198.38,2.03910409]
[1735114697144,0.94455317,198.51,198.37,30.37913467]
[1735114697342,0.94455317,198.51,198.37,0.37913467]
[1735114698165,0.94455317,198.51,198.38,20.0]
[1735114698539,6.2972,198.5,198.39,23.776884]
[1735114698738,0.94487626,198.49,198.39,23.776884]
[1735114701573,0.94487626,198.49,198.39,24.15607741]
[1735114701865,20.0,198.51,198.39,54.15607741]
[1735114702369,0.94467045,198.5,198.39,54.15607741]
[1735114703569,20.0,198.51,198.4,0.12549]
[1735114703764,0.94471852,198.53,198.41,30.37876398]
[1735114704070,0.94457415,198.55,198.44,23.776884]
[1735114704233,0.94457415,198.55,198.45,0.37841043]
[1735114706066,7.84487415,198.55,198.45,0.37841043]
[1735114706668,7.84487415,198.55,198.44,23.776884]
[1735114710570,7.84487415,198.55,198.45,30.12549]
[1735114710779,6.9003,198.55,198.48,23.776884]
[1735114710944,6.9003,198.55,198.49,0.37812239]
[1735114711654,6.3078,198.56,198.5,23.776884]
[1735114711961,6.3078,198.56,198.51,0.37792364]
[1735114712964,6.3078,198.56,198.52,23.776884]
[1735114713782,6.9003,198.58,198.52,23.776884]
[1735114714354,6.9003,198.58,198.53,0.37776395]
[1735114717485,6.9003,198.58,198.54,23.902374]
[1735114717657,6.6089,198.62,198.55,0.37749084]
[1735114718080,6.6089,198.61,198.55,0.37749084]
[1735114718686,6.6089,198.61,198.56,23.776884]
[1735114719383,6.6089,198.61,198.57,30.0]
[1735114719565,6.6089,198.61,198.58,23.776884]
[1735114719745,6.6089,198.62,198.58,23.776884]
[1735114720475,13.2178,198.62,198.58,23.776884]
[1735114721378,6.6089,198.67,198.6,23.776884]
[1735114721884,13.2178,198.67,198.6,23.776884]
[1735114723153,0.94382181,198.66,198.53,30.0]
[1735114723476,0.94382181,198.66,198.55,30.0]
[1735114723990,13.2178,198.67,198.59,30.0]
[1735114724166,13.2178,198.67,198.6,0.37701929]
[1735114724782,13.2178,198.67,198.6,24.15390329]
[1735114725280,13.2178,198.67,198.61,30.12549]
[1735114725487,13.2178,198.67,198.62,23.776884]
[1735114725667,13.2178,198.67,198.62,24.15370122]
[1735114725870,6.6089,198.67,198.62,24.15370122]
[1735114726385,6.069,198.72,198.64,23.776884]
[1735114726594,6.8953,198.71,198.64,23.776884]
[1735114731168,0.94366045,198.7,198.64,23.776884]
[1735114731476,13.1861,198.71,198.64,23.776884]
[1735114742804,0.94368929,198.7,198.64,23.776884]
[1735114743004,13.1861,198.71,198.64,23.776884]
[1735114745607,0.9437152,198.7,198.59,30.0]
[1735114746610,6.2912,198.69,198.6,0.37716387]
[1735114746803,7.83912672,198.71,198.62,23.776884]
[1735114746804,6.8953,198.71,198.62,23.776884]
[1735114746986,6.8953,198.71,198.62,24.15370104]
[1735114747188,7.83895334,198.71,198.62,24.15370104]
[1735114747489,7.83900763,198.71,198.62,23.776884]
[1735114748210,6.8953,198.71,198.62,23.776884]
[1735114748706,6.2908,198.7,198.62,23.776884]
[1735114748907,0.94382489,198.69,198.57,0.37685991]
[1735114749098,0.94382489,198.69,198.56,30.0]
[1735114749983,6.2915,198.68,198.56,30.0]
[1735114750183,0.94395767,198.67,198.56,30.0]
[1735114750385,0.94395767,198.67,198.57,24.15430744]
[1735114750589,6.2915,198.68,198.59,23.776884]
[1735114750903,0.94385061,198.67,198.58,0.12549]
[1735114751410,0.94385061,198.67,198.59,23.776884]
[1735114751598,6.2915,198.68,198.59,23.776884]
[1735114752416,0.94387118,198.7,198.6,30.50266915]
[1735114752618,14.12973436,198.71,198.61,23.776884]
[1735114753707,6.8953,198.71,198.63,23.776884]
[1735114755022,7.23448963,198.7,198.58,30.0]
[1735114755197,7.23448963,198.7,198.59,23.776884]
[1735114755393,7.23448963,198.7,198.6,30.12549]
[1735114755706,6.2908,198.7,198.61,23.776884]
[1735114755922,6.8953,198.71,198.63,23.776884]
[1735114756303,6.8953,198.71,198.64,0.37670593]
[1735114756505,6.8953,198.71,198.65,23.776884]
[1735114772229,6.069,198.72,198.65,23.776884]
[1735114773616,6.069,198.72,198.65,24.15350853]
[1735114787543,6.2905,198.71,198.61,30.0]
[1735114787712,7.2340479,198.71,198.61,30.0]
[1735114788221,7.2340479,198.71,198.62,0.37696421]
[1735114788413,6.2905,198.71,198.62,0.37696421]
[1735114788742,6.2905,198.71,198.63,30.12549]
[1735114788947,6.2905,198.71,198.64,24.15353885]
[1735114789616,7.23404613,198.71,198.64,23.776884]
[1735114790041,6.2905,198.71,198.64,23.776884]
[1735114790230,1.54908171,198.7,198.59,30.0]
[1735114790431,1.54908171,198.7,198.58,0.37660269]
[1735114791325,1.54908171,198.7,198.58,24.15348669]
[1735114791523,6.2912,198.69,198.58,0.37660269]
[1735114791838,0.94392689,198.68,198.57,30.0]
[1735114792322,6.5124,198.67,198.54,30.0]
[1735114792527,0.94407533,198.66,198.54,30.0]
[1735114793644,6.2924,198.65,198.54,30.0]
[1735114793822,0.94408675,198.64,198.54,30.0]
[1735114794145,6.2924,198.65,198.55,0.50316991]
[1735114794347,0.94408475,198.66,198.57,23.776884]
[1735114794555,6.5124,198.67,198.57,24.15422111]
[1735114795060,7.45626044,198.67,198.57,24.15422111]
[1735114796853,6.5124,198.67,198.57,24.15422111]
[1735114797159,7.45626738,198.67,198.57,24.15422111]
[1735114799636,7.45626738,198.67,198.57,23.776884]
[1735114802460,6.2921,198.66,198.56,0.37738178]
[1735114802642,0.94403582,198.65,198.54,30.0]
[1735114803246,6.5124,198.64,198.54,30.0]
[1735114803549,0.94407033,198.63,198.54,30.0]
[1735114804262,0.94407033,198.63,198.55,23.776884]
[1735114804856,0.94407033,198.63,198.51,30.0]
[1735114805062,6.8988,198.62,198.52,23.776884]
[1735114805267,6.8988,198.62,198.49,30.37783044]
[1735114805268,6.2607,198.6,198.49,30.37783044]
[1735114805438,0.94431938,198.59,198.45,31.96334919]
[1735114806361,6.2946,198.58,198.46,0.12549]
[1735114806662,0.94443794,198.57,198.47,30.3783863]
[1735114806842,0.94443794,198.57,198.48,23.776884]
[1735114808050,6.2946,198.58,198.48,23.776884]
[1735114809857,6.2946,198.58,198.49,0.3781753]
[1735114811176,6.2607,198.6,198.51,23.776884]
[1735114811356,6.2607,198.6,198.52,30.5033414]
[1735114811557,6.2607,198.6,198.52,0.5033414]
[1735114811756,6.2607,198.6,198.53,23.776884]
[1735114812070,6.2607,198.6,198.54,0.37783053]
[1735114814973,6.2607,198.6,198.53,23.776884]
[1735114815182,6.2607,198.6,198.46,0.37769728]
[1735114815183,7.23848389,198.59,198.48,30.0]
[1735114815343,7.23848389,198.59,198.49,0.37814848]
[1735114816270,6.2943,198.59,198.5,0.12549]
[1735114816444,7.23861435,198.59,198.5,0.12549]
[1735114816646,6.2943,198.59,198.51,23.776884]
[1735114816873,6.2943,198.59,198.51,24.15482829]
[1735114817458,7.2385218,198.59,198.51,23.776884]
[1735114817781,6.2607,198.6,198.53,23.776884]
[1735114817982,6.2607,198.6,198.54,0.37762777]
[1735114818151,6.2607,198.6,198.54,30.37762777]
[1735114818352,6.2607,198.6,198.55,23.776884]
[1735114818767,12.9415,198.65,198.57,23.776884]
[1735114818976,12.9415,198.65,198.58,0.37737787]
[1735114824669,12.9415,198.65,198.57,23.776884]
[1735114824859,12.9415,198.65,198.57,24.15424789]
[1735114830975,12.9415,198.65,198.57,23.776884]
[1735114831688,6.649,198.65,198.6,23.776884]
[1735114834986,0.6054,198.67,198.6,23.776884]
[1735114835561,13.1975,198.7,198.62,23.776884]
[1735114836190,0.94367314,198.69,198.61,20.0]
[1735114841666,19.4886,198.7,198.62,23.776884]
[1735114845295,19.4886,198.7,198.62,53.776884]
[1735114845472,13.1975,198.7,198.62,54.15370846]
[1735114846102,13.1975,198.7,198.63,0.12549]
[1735114846792,13.1975,198.7,198.64,30.0]
[1735114846967,6.5485,198.7,198.65,23.776884]
[1735114851288,6.5485,198.7,198.66,0.37654992]
[1735114851484,20.0929,198.73,198.66,0.37654992]
[1735114852308,6.5283,198.75,198.67,23.776884]
[1735114853008,0.94351937,198.74,198.67,23.776884]
[1735114853215,8.17616337,198.74,198.67,23.776884]
[1735114853709,7.232644,198.74,198.67,23.776884]
[1735114860305,0.94352007,198.73,198.6,30.0]
[1735114860508,0.94352007,198.73,198.59,0.37655056]
[1735114860700,0.94352007,198.73,198.6,30.0]
[1735114860893,0.94352007,198.73,198.61,0.50249537]
[1735114861200,14.46614939,198.74,198.64,0.12549]
[1735114861399,14.46614939,198.74,198.64,0.50210726]
[1735114862115,14.46614939,198.74,198.64,24.27899126]
[1735114862491,14.46614939,198.74,198.64,24.15350126]
[1735114862694,27.04534939,198.74,198.62,20.0]
[1735114863399,27.04534939,198.74,198.59,30.0]
[1735114863812,27.04534939,198.74,198.6,0.12549]
[1735114864203,27.04534939,198.74,198.56,8.0975]
[1735114864204,6.4047,198.7,198.56,1.5452]
[1735114864407,0.94399593,198.69,198.56,1.5452]
[1735114864612,20.0,198.67,198.53,30.0]
[1735114864802,20.0,198.65,198.51,31.5452]
[1735114865001,6.4047,198.63,198.51,31.5452]
[1735114865291,0.94417791,198.62,198.51,31.5452]
[1735114865493,0.94417791,198.62,198.51,1.5452]
[1735114865807,0.94417791,198.62,198.49,30.0]
[1735114866187,7.23767791,198.62,198.49,30.0]
[1735114866830,7.23767791,198.62,198.52,20.0]
[1735114867620,7.23767791,198.62,198.53,23.776884]
[1735114867824,0.6054,198.61,198.49,30.0]
[1735114868096,26.4047,198.59,198.47,30.0]
[1735114868323,0.94441102,198.58,198.47,30.0]
[1735114868619,7.0101,198.57,198.44,30.0]
[1735114868826,0.94450574,198.56,198.46,30.0]
[1735114869634,0.94450574,198.56,198.47,23.776884]
[1735114870618,6.2956,198.55,198.47,20.0]
[1735114870800,0.9445276,198.54,198.45,23.776884]
[1735114874932,7.0101,198.57,198.48,30.12549]
[1735114875135,7.0101,198.57,198.49,24.15496982]
[1735114876728,7.0101,198.57,198.49,23.776884]
[1735114878308,14.0202,198.57,198.49,23.776884]
[1735114879109,12.3971,198.61,198.52,23.776884]
[1735114879309,12.3971,198.61,198.52,24.15477223]
[1735114879715,6.1034,198.61,198.54,23.776884]
[1735114879914,6.1034,198.61,198.54,24.1545972]
[1735114880131,12.3962,198.61,198.54,24.1545972]
[1735114882742,12.3962,198.61,198.5,30.0]
[1735114882948,0.94408659,198.6,198.53,20.0]
[1735114883246,0.94408659,198.6,198.5,23.902374]
[1735114883451,0.94408659,198.6,198.5,54.28043194]
[1735114883746,13.34042511,198.61,198.5,54.28043194]
[1735114884528,13.34042511,198.61,198.53,20.0]
[1735114884737,12.3962,198.61,198.54,23.776884]
[1735114886750,12.3962,198.61,198.53,20.0]
[1735114886949,0.94410488,198.6,198.49,31.6421]
[1735114887136,0.94410488,198.6,198.5,23.776884]
[1735114888524,0.94410488,198.6,198.5,24.15494766]
[1735114888725,12.3962,198.61,198.53,23.776884]
[1735114889161,0.9441753,198.6,198.53,23.776884]
[1735114889658,12.3962,198.61,198.53,23.776884]
[1735114890462,0.9441825,198.6,198.51,20.0]
[1735114890765,0.9441825,198.6,198.5,30.0]
[1735114891126,0.9441825,198.6,198.51,23.776884]
[1735114891921,0.9441825,198.6,198.5,24.15488967]
[1735114892127,6.2943,198.59,198.49,20.0]
[1735114892425,0.94441265,198.58,198.5,20.0]
[1735114893264,0.94441265,198.58,198.49,20.0]
[1735114894265,6.295,198.57,198.44,31.546]
[1735114894562,0.9445322,198.56,198.45,23.776884]
[1735114894765,0.9445322,198.56,198.45,0.12549]
[1735114894943,0.9445322,198.56,198.45,0.50397212]
[1735114896038,6.6662,198.55,198.47,20.0]
[1735114896240,6.6662,198.55,198.45,24.28085612]
[1735114899269,0.94447065,198.54,198.45,24.28085612]
[1735114899439,0.94447065,198.54,198.45,24.15536612]
[1735114899643,0.94447065,198.54,198.45,23.776884]
[1735114902847,0.94447065,198.54,198.42,30.0]
[1735114903064,0.94447065,198.54,198.41,23.776884]
[1735114903240,6.2962,198.53,198.37,30.0]
[1735114903446,0.94481016,198.52,198.37,30.37913074]
[1735114904350,0.94481016,198.52,198.39,0.37915774]
[1735114904672,0.94481016,198.52,198.4,0.12549]
[1735114904849,6.6444,198.5,198.37,30.37913721]
[1735114905058,0.94483994,198.49,198.4,20.0]
[1735114922282,7.58923009,198.5,198.41,24.1560546]
[1735114922483,6.6444,198.5,198.41,24.1560546]
[1735114922693,6.6444,198.48,198.41,24.1560546]
[1735114924660,0.94475698,198.47,198.38,23.776884]
[1735114925386,0.94475698,198.47,198.38,20.0]
[1735114925387,1.55015698,198.47,198.38,20.0]
[1735114925987,1.55015698,198.47,198.35,30.37945384]
[1735114926594,6.3669,198.46,198.33,31.90196684]
[1735114926888,0.94507116,198.45,198.34,0.12549]
[1735114927088,6.3669,198.46,198.38,30.0]
[1735114927693,6.3669,198.46,198.39,23.776884]
[1735114929690,0.94489216,198.45,198.37,20.0]
[1735114930198,7.25129699,198.46,198.37,20.0]
[1735114930403,7.25129699,198.46,198.37,20.37932173]
[1735114931302,7.25129699,198.46,198.37,20.0]
[1735114932618,7.25129699,198.46,198.35,0.37939022]
[1735114932979,7.25129699,198.46,198.34,23.776884]
[1735114933905,7.25129699,198.46,198.36,30.0]
[1735114934144,7.25129699,198.46,198.37,24.15621548]
[1735114935609,7.25129699,198.46,198.37,23.776884]
[1735114938820,7.25129699,198.46,198.38,0.12549]
[1735114938994,6.6444,198.48,198.42,30.0]
[1735114939189,6.6444,198.48,198.43,24.15561695]
[1735114939396,6.6444,198.48,198.45,23.776884]
[1735114939602,6.6444,198.48,198.45,24.15540926]
[1735114940018,0.94449408,198.53,198.45,23.776884]
[1735114940193,7.58889408,198.53,198.45,23.776884]
[1735114940713,7.58889408,198.53,198.41,21.6346]
[1735114940919,7.58889408,198.53,198.42,23.776884]
[1735114941313,7.58889408,198.53,198.42,53.776884]
[1735114941514,7.58889408,198.53,198.42,23.776884]
[1735114942613,7.58889408,198.53,198.42,53.776884]
[1735114942808,7.58889408,198.53,198.43,0.37889658]
[1735114942988,7.58889408,198.53,198.45,20.0]
[1735114943193,6.6444,198.53,198.45,24.15540285]
[1735114944615,6.6444,198.53,198.48,50.0]
[1735114944824,6.6444,198.53,198.49,24.28053398]
[1735114945318,7.1996355,198.6,198.51,23.776884]
[1735114945499,6.2551,198.6,198.53,23.776884]
[1735114945692,6.2551,198.6,198.55,23.776884]
[1735114946022,7.83363962,198.63,198.56,0.37750748]
[1735114946195,7.83364,198.62,198.55,23.776884]
[1735114946388,7.83364,198.62,198.55,24.15448813]
[1735114946590,7.83364,198.62,198.57,23.776884]
[1735114946814,6.2551,198.65,198.57,23.776884]
[1735114947020,6.2551,198.65,198.57,24.15433426]
[1735114947215,6.2551,198.65,198.59,23.776884]
[1735114948202,6.2551,198.65,198.6,0.12549]
[1735114948389,6.626,198.7,198.61,23.776884]
[1735114948591,0.94373026,198.69,198.61,23.776884]
[1735114948793,0.94373026,198.69,198.57,0.37697094]
[1735114949014,6.626,198.68,198.59,20.0]
[1735114949221,0.94392554,198.67,198.58,0.12549]
[1735114950523,0.94392554,198.67,198.57,23.776884]
[1735114951223,0.94392554,198.67,198.56,23.902374]
[1735114952522,0.94392554,198.67,198.56,23.776884]
[1735114953023,7.2314,198.65,198.56,23.776884]
[1735114953233,7.2314,198.65,198.49,1.90758429]
[1735114953234,0.94419058,198.64,198.49,31.90758429]
[1735114954116,0.94419058,198.64,198.5,0.12549]
[1735114954314,0.94419058,198.64,198.54,0.12549]
[1735114954505,7.2314,198.65,198.56,23.902374]
[1735114955096,0.94397057,198.64,198.56,23.902374]
[1735114956894,7.2314,198.65,198.56,23.902374]
[1735114957101,0.94400701,198.64,198.56,23.776884]
[1735114957824,0.94400701,198.64,198.53,0.37760289]
[1735114958169,0.94400701,198.64,198.52,23.776884]
[1735114959402,6.2931,198.63,198.52,23.776884]
[1735114959730,0.94428024,198.62,198.52,23.776884]
[1735114960427,0.94428024,198.62,198.49,1.53]
[1735114960631,0.94428024,198.62,198.5,43.776884]
[1735114961335,0.94428024,198.62,198.52,20.0]
[1735114964332,0.94428024,198.62,198.53,23.776884]
[1735114964503,0.94415578,198.64,198.53,23.776884]
[1735114967539,6.2931,198.63,198.5,20.0]
[1735114967836,6.061,198.61,198.51,23.776884]
[1735114968045,0.94435772,198.6,198.51,23.776884]
[1735114970142,6.061,198.58,198.44,1.5836]
[1735114970448,0.94463553,198.57,198.44,1.5836]
[1735114971437,7.23983553,198.57,198.45,73.776884]
[1735114971624,0.94463553,198.57,198.47,30.0]
[1735114971857,6.061,198.58,198.48,24.15519277]
[1735114972847,0.94432887,198.57,198.48,24.15519277]
[1735114973344,0.94432887,198.57,198.48,23.776884]
[1735114976356,7.23942887,198.57,198.46,20.0]
[1735114979224,7.23942887,198.57,198.44,20.0]
[1735114979538,7.23942887,198.57,198.45,43.776884]
[1735114979736,7.23942887,198.57,198.45,23.776884]
[1735114980622,7.23942887,198.57,198.44,20.0]
[1735114980822,7.23942887,198.57,198.46,20.0]
[1735114981021,7.23942887,198.57,198.45,53.776884]
[1735114981245,7.23942887,198.57,198.45,23.776884]
[1735114982966,7.23942887,198.57,198.46,0.12549]
[1735114983135,0.94432887,198.57,198.47,23.776884]
[1735114988164,12.3559,198.58,198.48,0.37842121]
[1735114988662,6.061,198.58,198.51,23.776884]
[1735114989172,6.061,198.58,198.52,0.37799753]
[1735114989334,6.3073,198.63,198.56,23.776884]
[1735114989541,6.3073,198.63,198.56,24.15434019]
[1735114995253,6.3073,198.63,198.58,23.776884]
[1735114995457,6.2215,198.68,198.6,23.776884]
[1735114995771,6.2215,198.68,198.61,0.37699857]
[1735114998380,6.2215,198.68,198.63,20.0]
[1735114998581,6.2215,198.73,198.64,43.776884]
[1735114998770,6.2215,198.73,198.66,20.0]
[1735114999581,0.94361003,198.72,198.66,20.0]
[1735115000689,0.94361003,198.72,198.64,23.776884]
[1735115001178,7.16523134,198.73,198.64,23.776884]
[1735115002184,6.2215,198.73,198.64,23.776884]
[1735115002380,6.2215,198.73,198.64,24.15353355]
[1735115002564,6.2215,198.73,198.68,20.0]
[1735115002917,6.2215,198.78,198.69,24.15336097]
[1735115003388,0.94334906,198.77,198.69,24.15336097]
[1735115003559,7.16484906,198.78,198.69,24.15336097]
[1735115003760,7.16484906,198.78,198.69,23.776884]
[1735115005499,6.2215,198.78,198.7,0.37632358]
[1735115006007,6.2215,198.78,198.72,20.0]
[1735115015307,7.16489882,198.78,198.72,20.0]
[1735115015679,6.2215,198.78,198.72,20.0]
[1735115019291,0.94327868,198.81,198.73,23.776884]
[1735115020189,0.9432407,198.82,198.73,23.776884]
[1735115021612,0.9432407,198.82,198.72,20.37601182]
[1735115021807,7.2303407,198.82,198.72,20.0]
[1735115022714,7.2303407,198.82,198.69,31.569]
[1735115022715,7.2303407,198.82,198.66,30.0]
[1735115023017,20.0,198.77,198.63,30.0]
[1735115023313,1.54907677,198.76,198.63,30.0]
[1735115023688,21.54907677,198.76,198.61,31.95328548]
[1735115024194,21.54907677,198.76,198.64,20.0]
[1735115024914,6.2893,198.75,198.64,20.0]
[1735115025104,0.94370605,198.74,198.64,20.0]
[1735115026410,6.2893,198.75,198.65,23.776884]
[1735115026411,0.94365919,198.75,198.65,23.776884]
[1735115026603,0.94365919,198.75,198.66,0.12549]
[1735115027987,1.54891438,198.76,198.68,20.0]
[1735115029011,0.6054,198.76,198.68,20.0]
[1735115033023,0.94350675,198.75,198.68,20.0]
[1735115033194,6.5946,198.74,198.62,0.37648754]
[1735115033401,0.9437275,198.73,198.64,20.0]
[1735115035310,0.9437275,198.73,198.61,21.5764]
[1735115035489,0.9437275,198.73,198.62,20.0]
[1735115035696,6.2902,198.72,198.62,20.0]
[1735115035891,0.94382529,198.71,198.62,20.0]
[1735115037725,0.94382529,198.71,198.61,20.0]
[1735115037935,0.94382529,198.71,198.62,23.776884]
[1735115039622,0.94368453,198.73,198.62,23.776884]
[1735115043421,7.53828453,198.73,198.62,23.776884]
[1735115043940,0.94368453,198.73,198.62,23.776884]
[1735115044142,8.48196953,198.73,198.62,23.776884]
[1735115053119,6.2902,198.72,198.62,23.776884]
[1735115053425,0.94376007,198.71,198.62,23.776884]
[1735115056915,0.94376007,198.71,198.62,24.15394342]
[1735115057130,0.94369384,198.72,198.62,24.15394342]
[1735115058616,8.48196268,198.73,198.63,30.12549]
[1735115058824,6.5946,198.74,198.66,23.776884]
[1735115059019,6.5946,198.74,198.67,0.37650938]
[1735115060724,6.5946,198.74,198.66,23.776884]
[1735115061538,6.5946,198.74,198.66,24.15339689]
[1735115065117,6.5946,198.74,198.68,23.776884]